[Event "Titled Tuesday Blitz July 4 Early 2023"]
[White "Gorovets, Andrey"]
[Black "Karttunen, Mika"]
[WhiteFideId "13504037"]
[BlackFideId "502081"]
[WhiteElo "2761"]
[BlackElo "2611"]
[Result "1-0"]
[Round "8"]
[TimeControl "180+2"]
[Date "2023.07.04"]
[WhiteClock "0:01:13"]
[BlackClock "0:00:06"]
[Board "46"]

1. d4 {[%clk 0:03:00]}  Nf6 {[%clk 0:02:59]} 2. c4 {[%clk 0:03:01]}  e6 {[%clk 0:02:59]} 3. Nf3 {[%clk 0:03:01]}  d5 {[%clk 0:02:59]} 4. g3 {[%clk 0:03:00]}  dxc4 {[%clk 0:02:55]} 5. Bg2 {[%clk 0:03:00]}  Bb4+ {[%clk 0:02:48]} 6. Nc3 {[%clk 0:02:58]}  O-O {[%clk 0:02:40]} 7. O-O {[%clk 0:02:56]}  a6 {[%clk 0:02:24]} 8. Qc2 {[%clk 0:02:55]}  Be7 {[%clk 0:02:21]} 9. Rd1 {[%clk 0:02:53]}  c6 {[%clk 0:02:15]} 10. a4 {[%clk 0:02:52]}  a5 {[%clk 0:02:15]} 11. Ne5 {[%clk 0:02:51]}  Nd5 {[%clk 0:02:12]} 12. Nxc4 {[%clk 0:02:47]}  Na6 {[%clk 0:02:10]} 13. e4 {[%clk 0:02:46]}  Ndb4 {[%clk 0:02:02]} 14. Qe2 {[%clk 0:02:41]}  Bd7 {[%clk 0:01:59]} 15. h4 {[%clk 0:02:41]}  Qe8 {[%clk 0:01:09]} 16. Bf4 {[%clk 0:02:36]}  c5 {[%clk 0:01:07]} 17. Nd6 {[%clk 0:02:22]}  Qd8 {[%clk 0:00:48]} 18. Nxb7 {[%clk 0:02:09]}  Qb6 {[%clk 0:00:44]} 19. Nxc5 {[%clk 0:02:06]}  Bxc5 {[%clk 0:00:42]} 20. dxc5 {[%clk 0:02:06]}  Nxc5 {[%clk 0:00:42]} 21. Bd6 {[%clk 0:02:03]}  Bc6 {[%clk 0:00:25]} 22. Qe3 {[%clk 0:01:56]}  Nd7 {[%clk 0:00:20]} 23. Qxb6 {[%clk 0:01:51]}  Nxb6 {[%clk 0:00:21]} 24. Bxf8 {[%clk 0:01:48]}  Rxf8 {[%clk 0:00:22]} 25. b3 {[%clk 0:01:48]}  Rb8 {[%clk 0:00:14]} 26. Rac1 {[%clk 0:01:44]}  Be8 {[%clk 0:00:14]} 27. Bf1 {[%clk 0:01:39]}  Kf8 {[%clk 0:00:14]} 28. Bb5 {[%clk 0:01:35]}  Ke7 {[%clk 0:00:14]} 29. Bxe8 {[%clk 0:01:34]}  Kxe8 {[%clk 0:00:15]} 30. Nb5 {[%clk 0:01:35]}  Nd7 {[%clk 0:00:14]} 31. Rc7 {[%clk 0:01:31]}  Rd8 {[%clk 0:00:14]} 32. Nd6+ {[%clk 0:01:28]}  Ke7 {[%clk 0:00:13]} 33. Nxf7 {[%clk 0:01:23]}  Na6 {[%clk 0:00:10]} 34. Nxd8 {[%clk 0:01:21]}  Nxc7 {[%clk 0:00:10]} 35. Nc6+ {[%clk 0:01:21]}  Ke8 {[%clk 0:00:10]} 36. Nxa5 {[%clk 0:01:22]}  Ne5 {[%clk 0:00:11]} 37. Kg2 {[%clk 0:01:21]}  Ke7 {[%clk 0:00:10]} 38. f4 {[%clk 0:01:20]}  Ng4 {[%clk 0:00:11]} 39. Nc6+ {[%clk 0:01:19]}  Kf6 {[%clk 0:00:11]} 40. Rd7 {[%clk 0:01:17]}  Na6 {[%clk 0:00:11]} 41. b4 {[%clk 0:01:16]}  h5 {[%clk 0:00:06]} 42. Ra7 {[%clk 0:01:13]} 1-0


[Site "https://www.chess.com"]

[Event "Titled Tuesday Blitz July 4 Early 2023"]
[White "Dvirnyy, Danyyil"]
[Black "Degenbaev, Aziz"]
[WhiteFideId "817570"]
[BlackFideId "13802640"]
[WhiteElo "2757"]
[BlackElo "2565"]
[Result "1/2-1/2"]
[Round "8"]
[TimeControl "180+2"]
[Date "2023.07.04"]
[WhiteClock "0:00:56"]
[BlackClock "0:00:37"]
[Board "47"]

1. d4 {[%clk 0:02:57]}  Nf6 {[%clk 0:02:58]} 2. c4 {[%clk 0:02:57]}  e6 {[%clk 0:02:57]} 3. Nf3 {[%clk 0:02:56]}  d5 {[%clk 0:02:56]} 4. e3 {[%clk 0:02:57]}  Be7 {[%clk 0:02:52]} 5. b3 {[%clk 0:02:55]}  O-O {[%clk 0:02:53]} 6. Bd3 {[%clk 0:02:55]}  b6 {[%clk 0:02:51]} 7. O-O {[%clk 0:02:55]}  Bb7 {[%clk 0:02:52]} 8. Bb2 {[%clk 0:02:55]}  Nbd7 {[%clk 0:02:53]} 9. Nc3 {[%clk 0:02:53]}  c5 {[%clk 0:02:53]} 10. cxd5 {[%clk 0:02:52]}  Nxd5 {[%clk 0:02:53]} 11. Nxd5 {[%clk 0:02:51]}  Bxd5 {[%clk 0:02:52]} 12. e4 {[%clk 0:02:50]}  Bb7 {[%clk 0:02:52]} 13. Qe2 {[%clk 0:02:45]}  cxd4 {[%clk 0:02:52]} 14. Nxd4 {[%clk 0:02:43]}  Nc5 {[%clk 0:02:52]} 15. Rad1 {[%clk 0:02:30]}  Nxd3 {[%clk 0:02:51]} 16. Qxd3 {[%clk 0:02:22]}  Qc8 {[%clk 0:02:51]} 17. Nb5 {[%clk 0:02:14]}  Qc5 {[%clk 0:02:28]} 18. Qg3 {[%clk 0:02:08]}  Qg5 {[%clk 0:02:26]} 19. Rd7 {[%clk 0:02:07]}  Qxg3 {[%clk 0:02:23]} 20. hxg3 {[%clk 0:02:01]}  Bc6 {[%clk 0:02:22]} 21. Rxe7 {[%clk 0:02:01]}  Bxb5 {[%clk 0:02:22]} 22. Rc1 {[%clk 0:01:56]}  a5 {[%clk 0:02:14]} 23. Rcc7 {[%clk 0:01:55]}  a4 {[%clk 0:02:13]} 24. Rb7 {[%clk 0:01:45]}  a3 {[%clk 0:02:08]} 25. Bd4 {[%clk 0:01:45]}  Bd3 {[%clk 0:02:08]} 26. Bxb6 {[%clk 0:01:42]}  Bxe4 {[%clk 0:02:02]} 27. Ra7 {[%clk 0:01:42]}  Rxa7 {[%clk 0:01:46]} 28. Rxa7 {[%clk 0:01:42]}  Ra8 {[%clk 0:01:46]} 29. Rxa8+ {[%clk 0:01:29]}  Bxa8 {[%clk 0:01:47]} 30. f3 {[%clk 0:01:30]}  Bc6 {[%clk 0:01:21]} 31. Bc5 {[%clk 0:01:30]}  f6 {[%clk 0:01:19]} 32. Bxa3 {[%clk 0:01:29]}  e5 {[%clk 0:01:19]} 33. Kf2 {[%clk 0:01:28]}  Kf7 {[%clk 0:01:20]} 34. Ke3 {[%clk 0:01:27]}  Ke6 {[%clk 0:01:21]} 35. Bb2 {[%clk 0:01:21]}  h5 {[%clk 0:01:21]} 36. Kd2 {[%clk 0:01:08]}  g5 {[%clk 0:01:19]} 37. Ke3 {[%clk 0:01:05]}  Bd5 {[%clk 0:01:17]} 38. Bc3 {[%clk 0:01:04]}  f5 {[%clk 0:01:15]} 39. Ba5 {[%clk 0:01:04]}  f4+ {[%clk 0:01:04]} 40. gxf4 {[%clk 0:01:04]}  exf4+ {[%clk 0:01:04]} 41. Kf2 {[%clk 0:01:01]}  Kf5 {[%clk 0:01:01]} 42. Bc7 {[%clk 0:01:00]}  g4 {[%clk 0:01:01]} 43. fxg4+ {[%clk 0:01:01]}  hxg4 {[%clk 0:01:02]} 44. g3 {[%clk 0:00:59]}  fxg3+ {[%clk 0:01:00]} 45. Bxg3 {[%clk 0:00:58]}  Ke4 {[%clk 0:00:59]} 46. Ke2 {[%clk 0:00:58]}  Be6 {[%clk 0:00:56]} 47. Bc7 {[%clk 0:00:57]}  Bf7 {[%clk 0:00:52]} 48. Kd2 {[%clk 0:00:57]}  Kd4 {[%clk 0:00:47]} 49. Kc2 {[%clk 0:00:57]}  Be6 {[%clk 0:00:43]} 50. Kb2 {[%clk 0:00:57]}  Kc5 {[%clk 0:00:43]} 51. Kc3 {[%clk 0:00:57]}  Kc6 {[%clk 0:00:42]} 52. Bf4 {[%clk 0:00:56]}  Bf7 {[%clk 0:00:39]} 53. Kb2 {[%clk 0:00:57]}  Be6 {[%clk 0:00:39]} 54. Kc3 {[%clk 0:00:54]}  Bf7 {[%clk 0:00:38]} 55. a4 {[%clk 0:00:54]}  Bxb3 {[%clk 0:00:36]} 56. Kxb3 {[%clk 0:00:55]}  Kb7 {[%clk 0:00:37]} 57. a5 {[%clk 0:00:54]}  g3 {[%clk 0:00:37]} 58. a6+ {[%clk 0:00:55]}  Kxa6 {[%clk 0:00:37]} 59. Bxg3 {[%clk 0:00:56]} 1/2-1/2


[Site "https://www.chess.com"]

[Event "Titled Tuesday Blitz July 4 Early 2023"]
[White "Gunina, Valentina"]
[Black "Jovic, Stanoje"]
[WhiteFideId "4167570"]
[BlackFideId "905020"]
[WhiteElo "2754"]
[BlackElo "2546"]
[Result "1-0"]
[Round "8"]
[TimeControl "180+2"]
[Date "2023.07.04"]
[WhiteClock "0:01:27"]
[BlackClock "0:00:00"]
[Board "48"]

1. e4 {[%clk 0:03:00]}  c6 {[%clk 0:02:59]} 2. Nc3 {[%clk 0:02:59]}  d5 {[%clk 0:02:59]} 3. Nf3 {[%clk 0:03:00]}  Nf6 {[%clk 0:02:59]} 4. e5 {[%clk 0:02:59]}  Ne4 {[%clk 0:02:59]} 5. d4 {[%clk 0:02:43]}  Bg4 {[%clk 0:02:56]} 6. Bd3 {[%clk 0:02:42]}  Nxc3 {[%clk 0:02:54]} 7. bxc3 {[%clk 0:02:42]}  e6 {[%clk 0:02:53]} 8. O-O {[%clk 0:02:42]}  b5 {[%clk 0:02:51]} 9. a4 {[%clk 0:02:41]}  bxa4 {[%clk 0:02:49]} 10. Rxa4 {[%clk 0:02:39]}  a5 {[%clk 0:02:49]} 11. c4 {[%clk 0:02:39]}  Nd7 {[%clk 0:02:40]} 12. Bd2 {[%clk 0:02:38]}  dxc4 {[%clk 0:02:24]} 13. Rxc4 {[%clk 0:02:37]}  a4 {[%clk 0:02:19]} 14. Rxc6 {[%clk 0:02:34]}  a3 {[%clk 0:02:17]} 15. Bb5 {[%clk 0:02:32]}  a2 {[%clk 0:02:11]} 16. Bc3 {[%clk 0:02:30]}  Be7 {[%clk 0:01:54]} 17. d5 {[%clk 0:02:21]}  O-O {[%clk 0:01:46]} 18. d6 {[%clk 0:02:22]}  Bg5 {[%clk 0:01:40]} 19. Be2 {[%clk 0:02:11]}  Bf4 {[%clk 0:01:29]} 20. Rc4 {[%clk 0:02:04]}  Bxf3 {[%clk 0:01:25]} 21. Bxf3 {[%clk 0:02:03]}  Bxe5 {[%clk 0:01:18]} 22. Bxa8 {[%clk 0:02:01]}  Qxa8 {[%clk 0:01:18]} 23. Qa1 {[%clk 0:01:53]}  Bxd6 {[%clk 0:00:37]} 24. Rd1 {[%clk 0:01:51]}  Nb6 {[%clk 0:00:09]} 25. Rg4 {[%clk 0:01:48]}  Rc8 {[%clk 0:00:06]} 26. Rxg7+ {[%clk 0:01:43]}  Kf8 {[%clk 0:00:05]} 27. Rxh7 {[%clk 0:01:35]}  Nd5 {[%clk 0:00:04]} 28. Bf6 {[%clk 0:01:28]}  Ke8 {[%clk 0:00:00]} 29. c4 {[%clk 0:01:27]} 1-0


[Site "https://www.chess.com"]

[Event "Titled Tuesday Blitz July 4 Early 2023"]
[White "Ocelak, Jakub"]
[Black "Cherniaiev, Tykhon"]
[WhiteFideId "23707933"]
[BlackFideId "14182360"]
[WhiteElo "2467"]
[BlackElo "2703"]
[Result "1-0"]
[Round "8"]
[TimeControl "180+2"]
[Date "2023.07.04"]
[WhiteClock "0:00:36"]
[BlackClock "0:00:00"]
[Board "52"]

1. d4 {[%clk 0:03:00]}  Nf6 {[%clk 0:03:00]} 2. Nc3 {[%clk 0:03:00]}  d5 {[%clk 0:03:00]} 3. Bf4 {[%clk 0:03:01]}  c5 {[%clk 0:02:52]} 4. e4 {[%clk 0:03:01]}  Nxe4 {[%clk 0:02:36]} 5. Nxe4 {[%clk 0:03:00]}  dxe4 {[%clk 0:02:37]} 6. dxc5 {[%clk 0:03:00]}  Qa5+ {[%clk 0:02:37]} 7. c3 {[%clk 0:03:00]}  Qxc5 {[%clk 0:02:38]} 8. Qa4+ {[%clk 0:03:00]}  Nc6 {[%clk 0:02:38]} 9. Qxe4 {[%clk 0:02:59]}  g6 {[%clk 0:02:39]} 10. Nf3 {[%clk 0:02:58]}  Bg7 {[%clk 0:02:39]} 11. Qe3 {[%clk 0:02:55]}  Qa5 {[%clk 0:02:27]} 12. Bc4 {[%clk 0:02:43]}  O-O {[%clk 0:02:26]} 13. h4 {[%clk 0:02:37]}  Bg4 {[%clk 0:02:23]} 14. Ng5 {[%clk 0:02:11]}  h6 {[%clk 0:01:52]} 15. Ne4 {[%clk 0:01:39]}  Ne5 {[%clk 0:01:17]} 16. Bb3 {[%clk 0:01:35]}  Qb5 {[%clk 0:01:05]} 17. Bxe5 {[%clk 0:01:06]}  Qxe5 {[%clk 0:00:47]} 18. O-O {[%clk 0:01:03]}  a5 {[%clk 0:00:44]} 19. a4 {[%clk 0:01:01]}  Bf5 {[%clk 0:00:39]} 20. Rfe1 {[%clk 0:00:58]}  Qc7 {[%clk 0:00:33]} 21. Ng3 {[%clk 0:00:56]}  Bg4 {[%clk 0:00:22]} 22. h5 {[%clk 0:00:49]}  Qb6 {[%clk 0:00:16]} 23. Qxb6 {[%clk 0:00:47]}  gxh5 {[%clk 0:00:03]} 24. Rxe7 {[%clk 0:00:45]}  Rac8 {[%clk 0:00:01]} 25. Rae1 {[%clk 0:00:40]}  Rc6 {[%clk 0:00:01]} 26. Qxb7 {[%clk 0:00:39]}  Rf6 {[%clk 0:00:00]} 27. Ne4 {[%clk 0:00:36]} 1-0


[Site "https://www.chess.com"]

[Event "Titled Tuesday Blitz July 4 Early 2023"]
[White "Slovineanu, Viacheslav"]
[Black "Koshulyan, Egor A."]
[WhiteFideId "13900510"]
[BlackFideId "24237000"]
[WhiteElo "2341"]
[BlackElo "2693"]
[Result "1/2-1/2"]
[Round "8"]
[TimeControl "180+2"]
[Date "2023.07.04"]
[WhiteClock "0:00:06"]
[BlackClock "0:00:25"]
[Board "53"]

1. d4 {[%clk 0:02:59]}  Nf6 {[%clk 0:02:47]} 2. Nf3 {[%clk 0:02:59]}  d5 {[%clk 0:02:48]} 3. c4 {[%clk 0:02:59]}  e6 {[%clk 0:02:48]} 4. e3 {[%clk 0:02:58]}  a6 {[%clk 0:02:47]} 5. b3 {[%clk 0:02:58]}  c5 {[%clk 0:02:46]} 6. Bd3 {[%clk 0:02:56]}  Nc6 {[%clk 0:02:44]} 7. Bb2 {[%clk 0:02:56]}  Be7 {[%clk 0:02:43]} 8. O-O {[%clk 0:02:55]}  O-O {[%clk 0:02:43]} 9. Nc3 {[%clk 0:02:55]}  cxd4 {[%clk 0:02:43]} 10. exd4 {[%clk 0:02:54]}  dxc4 {[%clk 0:02:31]} 11. bxc4 {[%clk 0:02:54]}  b6 {[%clk 0:02:31]} 12. Qe2 {[%clk 0:02:54]}  Bb7 {[%clk 0:02:31]} 13. Rad1 {[%clk 0:02:53]}  Qc7 {[%clk 0:02:27]} 14. d5 {[%clk 0:02:41]}  exd5 {[%clk 0:02:28]} 15. Nxd5 {[%clk 0:02:41]}  Nxd5 {[%clk 0:02:19]} 16. cxd5 {[%clk 0:02:40]}  Nb4 {[%clk 0:02:20]} 17. Be5 {[%clk 0:02:05]}  Bd6 {[%clk 0:02:20]} 18. Bxh7+ {[%clk 0:02:05]}  Kxh7 {[%clk 0:02:19]} 19. Ng5+ {[%clk 0:02:05]}  Kg6 {[%clk 0:02:02]} 20. Bxd6 {[%clk 0:01:16]}  Qxd6 {[%clk 0:01:59]} 21. Ne4 {[%clk 0:01:16]}  Qf4 {[%clk 0:01:28]} 22. g3 {[%clk 0:01:04]}  Qf5 {[%clk 0:01:27]} 23. Nd6 {[%clk 0:01:00]}  Qd7 {[%clk 0:01:12]} 24. Qe4+ {[%clk 0:01:00]}  f5 {[%clk 0:01:08]} 25. Qxb4 {[%clk 0:00:59]}  a5 {[%clk 0:01:08]} 26. Qxb6 {[%clk 0:00:53]}  Ra6 {[%clk 0:01:08]} 27. Qxb7 {[%clk 0:00:53]}  Qxd6 {[%clk 0:01:09]} 28. Rfe1 {[%clk 0:00:49]}  Rb6 {[%clk 0:01:00]} 29. Qxb6 {[%clk 0:00:39]}  Qxb6 {[%clk 0:01:00]} 30. Re6+ {[%clk 0:00:39]}  Qxe6 {[%clk 0:01:00]} 31. dxe6 {[%clk 0:00:40]}  Re8 {[%clk 0:01:01]} 32. Re1 {[%clk 0:00:39]}  Kf6 {[%clk 0:01:02]} 33. e7 {[%clk 0:00:39]}  Rxe7 {[%clk 0:01:00]} 34. Rxe7 {[%clk 0:00:38]}  Kxe7 {[%clk 0:01:01]} 35. Kf1 {[%clk 0:00:37]}  Kd6 {[%clk 0:01:02]} 36. Ke2 {[%clk 0:00:37]}  Kc5 {[%clk 0:01:03]} 37. Kd3 {[%clk 0:00:33]}  Kb4 {[%clk 0:01:04]} 38. f3 {[%clk 0:00:27]}  Ka3 {[%clk 0:00:59]} 39. h4 {[%clk 0:00:24]}  Kxa2 {[%clk 0:01:00]} 40. Kc2 {[%clk 0:00:24]}  a4 {[%clk 0:00:23]} 41. g4 {[%clk 0:00:22]}  fxg4 {[%clk 0:00:24]} 42. fxg4 {[%clk 0:00:23]}  a3 {[%clk 0:00:24]} 43. h5 {[%clk 0:00:17]}  Ka1 {[%clk 0:00:25]} 44. g5 {[%clk 0:00:16]}  a2 {[%clk 0:00:25]} 45. h6 {[%clk 0:00:06]}  g6 {[%clk 0:00:25]} 46. h7 {[%clk 0:00:06]} 1/2-1/2


[Site "https://www.chess.com"]

[Event "Titled Tuesday Blitz July 4 Early 2023"]
[White "Rodchenkov, Sergey D."]
[Black "Hambleton, Aman"]
[WhiteFideId "4168712"]
[BlackFideId "2606577"]
[WhiteElo "2553"]
[BlackElo "2768"]
[Result "0-1"]
[Round "8"]
[TimeControl "180+2"]
[Date "2023.07.04"]
[WhiteClock "0:00:46"]
[BlackClock "0:00:07"]
[Board "58"]

1. e4 {[%clk 0:03:00]}  c5 {[%clk 0:02:59]} 2. Nf3 {[%clk 0:03:01]}  e6 {[%clk 0:02:57]} 3. d4 {[%clk 0:03:01]}  cxd4 {[%clk 0:02:58]} 4. Nxd4 {[%clk 0:03:02]}  Nc6 {[%clk 0:02:59]} 5. Nc3 {[%clk 0:03:03]}  Qc7 {[%clk 0:02:59]} 6. a3 {[%clk 0:03:03]}  a6 {[%clk 0:02:59]} 7. Be3 {[%clk 0:03:03]}  b5 {[%clk 0:03:00]} 8. f4 {[%clk 0:03:00]}  Bb7 {[%clk 0:03:00]} 9. e5 {[%clk 0:02:52]}  Nxd4 {[%clk 0:02:26]} 10. Qxd4 {[%clk 0:02:49]}  Ne7 {[%clk 0:02:27]} 11. O-O-O {[%clk 0:02:09]}  Nf5 {[%clk 0:02:16]} 12. Qd3 {[%clk 0:02:03]}  Nxe3 {[%clk 0:01:55]} 13. Qxe3 {[%clk 0:02:02]}  Rc8 {[%clk 0:01:37]} 14. Bd3 {[%clk 0:01:49]}  Bxa3 {[%clk 0:01:23]} 15. Bxb5 {[%clk 0:01:29]}  axb5 {[%clk 0:00:41]} 16. Kb1 {[%clk 0:01:17]}  b4 {[%clk 0:00:26]} 17. Rd3 {[%clk 0:01:13]}  Ba6 {[%clk 0:00:13]} 18. bxa3 {[%clk 0:01:02]}  Bxd3 {[%clk 0:00:12]} 19. Qxd3 {[%clk 0:01:03]}  Qxc3 {[%clk 0:00:08]} 20. Qxc3 {[%clk 0:01:03]}  Rxc3 {[%clk 0:00:05]} 21. axb4 {[%clk 0:01:03]}  Rc4 {[%clk 0:00:05]} 22. Kb2 {[%clk 0:01:02]}  Rxb4+ {[%clk 0:00:05]} 23. Kc3 {[%clk 0:01:03]}  Rb8 {[%clk 0:00:06]} 24. Ra1 {[%clk 0:01:03]}  Ke7 {[%clk 0:00:05]} 25. Kd3 {[%clk 0:01:04]}  Rhc8 {[%clk 0:00:06]} 26. c4 {[%clk 0:01:05]}  Rc6 {[%clk 0:00:06]} 27. Kd4 {[%clk 0:01:05]}  Rbc8 {[%clk 0:00:07]} 28. Ra4 {[%clk 0:01:05]}  d6 {[%clk 0:00:08]} 29. h4 {[%clk 0:01:05]}  dxe5+ {[%clk 0:00:07]} 30. fxe5 {[%clk 0:01:06]}  Rd8+ {[%clk 0:00:08]} 31. Ke4 {[%clk 0:01:07]}  Rc7 {[%clk 0:00:08]} 32. g4 {[%clk 0:01:07]}  h6 {[%clk 0:00:08]} 33. g5 {[%clk 0:01:07]}  hxg5 {[%clk 0:00:09]} 34. hxg5 {[%clk 0:01:08]}  Rd1 {[%clk 0:00:09]} 35. Ra8 {[%clk 0:01:07]}  Rxc4+ {[%clk 0:00:09]} 36. Ke3 {[%clk 0:01:08]}  Rd5 {[%clk 0:00:08]} 37. Ra7+ {[%clk 0:01:08]}  Rd7 {[%clk 0:00:09]} 38. Ra5 {[%clk 0:01:07]}  Rg4 {[%clk 0:00:09]} 39. Kf3 {[%clk 0:01:07]}  Rxg5 {[%clk 0:00:09]} 40. Kf4 {[%clk 0:01:08]}  Rf5+ {[%clk 0:00:10]} 41. Ke4 {[%clk 0:01:08]}  g6 {[%clk 0:00:11]} 42. Ra8 {[%clk 0:01:08]}  Rd5 {[%clk 0:00:11]} 43. Rg8 {[%clk 0:01:08]}  Rdxe5+ {[%clk 0:00:10]} 44. Kd4 {[%clk 0:00:58]}  Rd5+ {[%clk 0:00:06]} 45. Ke4 {[%clk 0:00:46]}  Rd8 {[%clk 0:00:07]} 0-1


[Site "https://www.chess.com"]

[Event "Titled Tuesday Blitz July 4 Early 2023"]
[White "Namitbir Singh Walia"]
[Black "Mendonca, Leon Luke"]
[WhiteFideId "35071068"]
[BlackFideId "35028561"]
[WhiteElo "2541"]
[BlackElo "2767"]
[Result "0-1"]
[Round "8"]
[TimeControl "180+2"]
[Date "2023.07.04"]
[WhiteClock "0:00:00"]
[BlackClock "0:00:14"]
[Board "59"]

1. e4 {[%clk 0:02:35]}  Nf6 {[%clk 0:02:56]} 2. e5 {[%clk 0:02:34]}  Ng8 {[%clk 0:02:56]} 3. d4 {[%clk 0:02:35]}  d6 {[%clk 0:02:56]} 4. Nf3 {[%clk 0:02:31]}  Bg4 {[%clk 0:02:56]} 5. Be2 {[%clk 0:02:27]}  e6 {[%clk 0:02:55]} 6. Nc3 {[%clk 0:02:22]}  d5 {[%clk 0:02:53]} 7. Be3 {[%clk 0:02:13]}  a6 {[%clk 0:02:53]} 8. Qd2 {[%clk 0:02:05]}  Nd7 {[%clk 0:02:53]} 9. h3 {[%clk 0:02:02]}  Bxf3 {[%clk 0:02:50]} 10. Bxf3 {[%clk 0:02:02]}  b5 {[%clk 0:02:50]} 11. a3 {[%clk 0:02:00]}  Nb6 {[%clk 0:02:50]} 12. b3 {[%clk 0:01:57]}  Rc8 {[%clk 0:02:50]} 13. a4 {[%clk 0:01:46]}  b4 {[%clk 0:02:43]} 14. Na2 {[%clk 0:01:46]}  a5 {[%clk 0:02:42]} 15. c3 {[%clk 0:01:42]}  bxc3 {[%clk 0:02:39]} 16. Qxc3 {[%clk 0:01:43]}  Ne7 {[%clk 0:02:22]} 17. g4 {[%clk 0:01:22]}  Ng6 {[%clk 0:02:09]} 18. Qxa5 {[%clk 0:01:20]}  Be7 {[%clk 0:02:08]} 19. O-O {[%clk 0:01:11]}  O-O {[%clk 0:02:07]} 20. Qc3 {[%clk 0:01:03]}  f6 {[%clk 0:01:30]} 21. exf6 {[%clk 0:01:03]}  Rxf6 {[%clk 0:01:26]} 22. Bg2 {[%clk 0:00:52]}  Nf4 {[%clk 0:01:14]} 23. Bxf4 {[%clk 0:00:44]}  Rxf4 {[%clk 0:01:15]} 24. Qe3 {[%clk 0:00:42]}  Bd6 {[%clk 0:00:22]} 25. Qxe6+ {[%clk 0:00:38]}  Kh8 {[%clk 0:00:22]} 26. a5 {[%clk 0:00:39]}  Nd7 {[%clk 0:00:21]} 27. a6 {[%clk 0:00:35]}  Rxd4 {[%clk 0:00:20]} 28. a7 {[%clk 0:00:26]}  Nc5 {[%clk 0:00:18]} 29. Qf5 {[%clk 0:00:12]}  c6 {[%clk 0:00:15]} 30. Nc3 {[%clk 0:00:10]}  Ra8 {[%clk 0:00:15]} 31. Rfe1 {[%clk 0:00:05]}  Rf4 {[%clk 0:00:15]} 32. Qh5 {[%clk 0:00:04]}  Rf8 {[%clk 0:00:13]} 33. b4 {[%clk 0:00:03]}  Nd3 {[%clk 0:00:13]} 34. b5 {[%clk 0:00:04]}  Nxe1 {[%clk 0:00:13]} 35. Rxe1 {[%clk 0:00:01]}  Qb6 {[%clk 0:00:14]} 36. bxc6 {[%clk 0:00:02]}  Qxf2+ {[%clk 0:00:13]} 37. Kh1 {[%clk 0:00:00]}  Qxe1+ {[%clk 0:00:14]} 0-1


[Site "https://www.chess.com"]

[Event "Titled Tuesday Blitz July 4 Early 2023"]
[White "Trifan, Andrei Ioan"]
[Black "Petrosian, Karlen"]
[WhiteFideId "12967068"]
[BlackFideId "4176146"]
[WhiteElo "2539"]
[BlackElo "2674"]
[Result "0-1"]
[Round "8"]
[TimeControl "180+2"]
[Date "2023.07.04"]
[WhiteClock "0:00:13"]
[BlackClock "0:00:36"]
[Board "62"]

1. e4 {[%clk 0:02:59]}  e6 {[%clk 0:02:59]} 2. d4 {[%clk 0:02:57]}  d5 {[%clk 0:03:00]} 3. Nc3 {[%clk 0:02:58]}  Nf6 {[%clk 0:02:59]} 4. e5 {[%clk 0:02:58]}  Nfd7 {[%clk 0:02:59]} 5. f4 {[%clk 0:02:59]}  c5 {[%clk 0:03:00]} 6. Nf3 {[%clk 0:02:59]}  Nc6 {[%clk 0:03:01]} 7. Be3 {[%clk 0:02:58]}  a6 {[%clk 0:03:01]} 8. Qd2 {[%clk 0:02:53]}  Qb6 {[%clk 0:03:01]} 9. Na4 {[%clk 0:02:48]}  Qb4 {[%clk 0:03:01]} 10. Qxb4 {[%clk 0:02:46]}  Nxb4 {[%clk 0:03:02]} 11. Kd2 {[%clk 0:02:31]}  b6 {[%clk 0:03:00]} 12. b3 {[%clk 0:02:24]}  Bb7 {[%clk 0:02:57]} 13. Nb2 {[%clk 0:02:22]}  Rc8 {[%clk 0:02:48]} 14. c3 {[%clk 0:02:21]}  Nc6 {[%clk 0:02:49]} 15. Be2 {[%clk 0:02:17]}  b5 {[%clk 0:02:27]} 16. Nd3 {[%clk 0:02:10]}  c4 {[%clk 0:02:24]} 17. Nf2 {[%clk 0:02:10]}  Nb6 {[%clk 0:02:17]} 18. b4 {[%clk 0:02:04]}  a5 {[%clk 0:02:12]} 19. a3 {[%clk 0:02:00]}  Be7 {[%clk 0:02:10]} 20. Rhb1 {[%clk 0:01:59]}  Ra8 {[%clk 0:02:11]} 21. Ne1 {[%clk 0:01:48]}  Kd7 {[%clk 0:02:08]} 22. Nc2 {[%clk 0:01:48]}  Ra7 {[%clk 0:02:00]} 23. g4 {[%clk 0:01:44]}  Rha8 {[%clk 0:01:57]} 24. Rh1 {[%clk 0:01:28]}  Na4 {[%clk 0:01:54]} 25. h4 {[%clk 0:01:25]}  Nxc3 {[%clk 0:01:15]} 26. Kxc3 {[%clk 0:01:22]}  axb4+ {[%clk 0:01:13]} 27. axb4 {[%clk 0:01:17]}  Rxa1 {[%clk 0:01:03]} 28. Rxa1 {[%clk 0:01:15]}  Rxa1 {[%clk 0:01:03]} 29. Nxa1 {[%clk 0:01:16]}  Bxb4+ {[%clk 0:01:03]} 30. Kb2 {[%clk 0:01:12]}  Ba5 {[%clk 0:01:03]} 31. f5 {[%clk 0:01:06]}  b4 {[%clk 0:01:03]} 32. h5 {[%clk 0:01:03]}  Bb6 {[%clk 0:01:01]} 33. h6 {[%clk 0:00:19]}  g6 {[%clk 0:01:00]} 34. fxg6 {[%clk 0:00:18]}  fxg6 {[%clk 0:01:01]} 35. Nh3 {[%clk 0:00:17]}  Nxe5 {[%clk 0:00:49]} 36. Ng5 {[%clk 0:00:16]}  Ke7 {[%clk 0:00:45]} 37. Nxh7 {[%clk 0:00:16]}  Nf7 {[%clk 0:00:42]} 38. g5 {[%clk 0:00:13]}  e5 {[%clk 0:00:39]} 39. Nf6 {[%clk 0:00:14]}  exd4 {[%clk 0:00:39]} 40. h7 {[%clk 0:00:14]}  dxe3 {[%clk 0:00:36]} 41. Ng8+ {[%clk 0:00:14]}  Kf8 {[%clk 0:00:35]} 42. Nh6 {[%clk 0:00:13]}  Nh8 {[%clk 0:00:36]} 0-1


[Site "https://www.chess.com"]

[Event "Titled Tuesday Blitz July 4 Early 2023"]
[White "Zhu, Jiner"]
[Black "Tikhonov, Viacheslav"]
[WhiteFideId "8608059"]
[BlackFideId "44196407"]
[WhiteElo "2659"]
[BlackElo "2539"]
[Result "1-0"]
[Round "8"]
[TimeControl "180+2"]
[Date "2023.07.04"]
[WhiteClock "0:00:54"]
[BlackClock "0:00:17"]
[Board "63"]

1. Nf3 {[%clk 0:03:00]}  Nf6 {[%clk 0:02:56]} 2. g3 {[%clk 0:03:01]}  g6 {[%clk 0:02:56]} 3. Bg2 {[%clk 0:03:02]}  Bg7 {[%clk 0:02:57]} 4. O-O {[%clk 0:03:02]}  O-O {[%clk 0:02:58]} 5. d3 {[%clk 0:02:58]}  d6 {[%clk 0:02:56]} 6. e4 {[%clk 0:02:58]}  e5 {[%clk 0:02:55]} 7. Nc3 {[%clk 0:02:53]}  h6 {[%clk 0:02:41]} 8. h3 {[%clk 0:02:46]}  Nh7 {[%clk 0:02:40]} 9. Be3 {[%clk 0:02:43]}  c5 {[%clk 0:02:35]} 10. Nd5 {[%clk 0:02:41]}  Nc6 {[%clk 0:02:36]} 11. Qd2 {[%clk 0:02:34]}  g5 {[%clk 0:02:21]} 12. c3 {[%clk 0:02:31]}  f5 {[%clk 0:02:10]} 13. exf5 {[%clk 0:02:16]}  Bxf5 {[%clk 0:02:10]} 14. h4 {[%clk 0:01:59]}  e4 {[%clk 0:01:53]} 15. dxe4 {[%clk 0:01:41]}  Bxe4 {[%clk 0:01:54]} 16. Nxg5 {[%clk 0:01:27]}  Nxg5 {[%clk 0:01:44]} 17. Bxg5 {[%clk 0:01:26]}  hxg5 {[%clk 0:01:41]} 18. Bxe4 {[%clk 0:01:25]}  gxh4 {[%clk 0:01:41]} 19. Nf4 {[%clk 0:01:19]}  Qg5 {[%clk 0:01:22]} 20. Qd5+ {[%clk 0:01:13]}  Qxd5 {[%clk 0:01:21]} 21. Bxd5+ {[%clk 0:01:14]}  Kh7 {[%clk 0:01:22]} 22. Be4+ {[%clk 0:01:09]}  Kh6 {[%clk 0:01:22]} 23. Ng6 {[%clk 0:01:09]}  Rfe8 {[%clk 0:01:20]} 24. Bxc6 {[%clk 0:01:08]}  bxc6 {[%clk 0:01:18]} 25. Nxh4 {[%clk 0:01:09]}  Kg5 {[%clk 0:01:14]} 26. Rfe1 {[%clk 0:01:05]}  Rab8 {[%clk 0:01:07]} 27. Rxe8 {[%clk 0:01:01]}  Rxe8 {[%clk 0:01:08]} 28. Rd1 {[%clk 0:01:01]}  Re2 {[%clk 0:00:49]} 29. Rxd6 {[%clk 0:00:58]}  Rxb2 {[%clk 0:00:47]} 30. Rg6+ {[%clk 0:00:58]}  Kh5 {[%clk 0:00:47]} 31. Rxg7 {[%clk 0:00:58]}  Rxa2 {[%clk 0:00:17]} 32. Nf5 {[%clk 0:00:54]} 1-0


[Site "https://www.chess.com"]